bitfinex-derivatives/quotes_SOLF0:USTF0_20250808
["timestamp","ask_amount","ask_price","bid_price","bid_amount"]
[1754657521980,12.70552709,176.69,176.68,8.83725023]
[1754657523487,3.27,176.69,176.68,8.83725023]
[1754657523687,12.70552709,176.69,176.68,8.83725023]
[1754657524090,12.70552709,176.69,176.68,3.17945023]
[1754657524787,3.27,176.69,176.67,3.17945023]
[1754657524988,12.54957122,176.73,176.67,3.17945023]
[1754657524989,9.44007701,176.68,176.67,3.17945023]
[1754657525184,9.44007701,176.68,176.67,8.83775023]
[1754657525495,12.71007701,176.68,176.67,3.17945023]
[1754657525785,9.44007701,176.68,176.65,3.17945023]
[1754657525987,3.27,176.67,176.65,0.93]
[1754657526184,3.27,176.67,176.66,3.17945023]
[1754657527179,3.23,176.66,176.65,3.17945023]
[1754657527479,3.23,176.66,176.63,298.7709002]
[1754657527480,3.23,176.66,176.63,194.1009002]
[1754657527679,3.23,176.64,176.61,3.17945023]
[1754657527886,3.23,176.63,176.61,4.10945023]
[1754657528285,3.23,176.62,176.61,4.10945023]
[1754657528585,3.23,176.62,176.61,3.17945023]
[1754657528786,3.23,176.62,176.61,8.83965023]
[1754657529087,6.76972226,176.62,176.61,8.83965023]
[1754657529294,6.76972226,176.62,176.61,3.17945023]
[1754657530086,6.76972226,176.62,176.61,8.83965023]
[1754657530888,3.53972226,176.62,176.61,9.76965023]
[1754657531282,6.76972226,176.62,176.61,8.83965023]
[1754657533786,6.76972226,176.62,176.61,7.42367154]
[1754657533991,6.76972226,176.62,176.61,8.35367154]
[1754657534191,6.76972226,176.62,176.61,7.42367154]
[1754657535390,6.76972226,176.62,176.61,4.24422131]
[1754657541596,3.53972226,176.62,176.61,5.17422131]
[1754657541798,7.51e-06,176.66,176.64,0.93]
[1754657541997,9.43385963,176.71,176.65,4.10945023]
[1754657542209,9.43385963,176.71,176.7,3.17945023]
[1754657542505,12.54957122,176.74,176.66,3.17945023]
[1754657542695,9.40954155,176.69,176.64,3.17945023]
[1754657543405,9.40954155,176.68,176.64,3.17945023]
[1754657544011,3.23,176.67,176.64,8.83845023]
[1754657544704,12.63954155,176.67,176.64,5.659]
[1754657545012,3.23,176.66,176.64,5.659]
[1754657546407,3.23,176.66,176.62,3.17945023]
[1754657546609,3.23,176.65,176.6,3.17945023]
[1754657547106,9.40954155,176.65,176.62,5.6598]
[1754657547309,3.23,176.64,176.61,3.04]
[1754657547603,3.23,176.64,176.62,6.21945023]
[1754657547909,3.23,176.63,176.62,6.21945023]
[1754657548807,3.23,176.65,176.62,3.17945023]
[1754657549009,12.63954155,176.68,176.64,6.21945023]
[1754657549207,3.23,176.68,176.67,3.17945023]
[1754657551704,3.23,176.68,176.67,8.83775023]
[1754657551906,12.63954155,176.7,176.67,6.21945023]
[1754657552208,3.23,176.69,176.68,3.04]
[1754657552406,3.23,176.68,176.67,3.17945023]
[1754657553304,3.23,176.68,176.67,8.83765023]
[1754657553609,12.63954155,176.72,176.67,3.17945023]
[1754657553805,9.40954155,176.73,176.71,3.17945023]
[1754657554004,9.40954155,176.74,176.71,3.17945023]
[1754657554212,3.23,176.74,176.73,3.17945023]
[1754657554603,9.40954155,176.74,176.71,3.17945023]
[1754657554804,3.23,176.72,176.71,7.697]
[1754657555007,3.23,176.72,176.71,3.17945023]
[1754657556399,9.40954155,176.73,176.72,2.04]
[1754657556605,3.23,176.74,176.73,2.04]
[1754657556804,3.23,176.74,176.73,5.21945023]
[1754657557606,3.23,176.74,176.73,10.87585023]
[1754657558008,9.40954155,176.75,176.74,5.6561]
[1754657558207,3.23,176.75,176.74,7.6961]
[1754657558401,12.66684339,176.75,176.74,7.6961]
[1754657558605,3.23,176.75,176.74,7.6961]
[1754657559014,3.23,176.74,176.73,8.83575023]
[1754657559609,3.23,176.74,176.73,10.87575023]
[1754657562115,12.67268775,176.74,176.73,8.83575023]
[1754657562304,3.23,176.74,176.73,8.83575023]
[1754657565109,3.23,176.74,176.71,3.17945023]
[1754657565313,12.54957122,176.74,176.71,3.17945023]
[1754657565512,3.23,176.73,176.71,3.17945023]
[1754657566112,15.77957122,176.73,176.71,3.17945023]
[1754657566315,3.23,176.72,176.71,3.17945023]
[1754657566608,6.76862446,176.72,176.71,3.17945023]
[1754657566913,3.23,176.71,176.7,3.17945023]
[1754657567213,6.76862446,176.71,176.7,3.17945023]
[1754657567914,3.23,176.71,176.7,3.17945023]
[1754657568115,15.77957122,176.71,176.69,5.6576]
[1754657568310,3.23,176.7,176.69,5.6576]
[1754657569615,3.23,176.7,176.68,8.83725023]
[1754657571009,3.23,176.7,176.65,2.04]
[1754657571217,3.23,176.69,176.67,3.17945023]
[1754657571817,3.23,176.69,176.68,5.6578]
[1754657572219,3.23,176.69,176.67,3.17945023]
[1754657572920,3.23,176.69,176.67,8.83755023]
[1754657574320,3.23,176.69,176.68,5.658]
[1754657575114,3.23,176.69,176.67,1.75889811]
[1754657575310,3.23,176.69,176.66,3.17945023]
[1754657575517,9.45890084,176.67,176.66,3.17945023]
[1754657575816,16.2281769,176.67,176.66,1.76373981]
[1754657576422,16.2281769,176.67,176.66,7.42233981]
[1754657576721,16.2281769,176.67,176.66,8.47822441]
[1754657577420,6.76927606,176.67,176.66,8.47822441]
[1754657580317,13.00090926,176.67,176.66,8.76822441]
[1754657580513,12.54957122,176.73,176.66,3.17945023]
[1754657580713,3.23,176.72,176.69,3.17945023]
[1754657582013,12.54957122,176.73,176.69,3.17945023]
[1754657582212,3.23,176.72,176.69,3.17945023]
[1754657582423,12.54957122,176.75,176.71,8.83625023]
[1754657582718,12.54957122,176.75,176.71,3.17945023]
[1754657582923,3.23,176.75,176.74,8.83555023]
[1754657583225,3.23,176.75,176.74,3.17945023]
[1754657583518,15.77957122,176.75,176.72,8.83585023]
[1754657583719,3.23,176.74,176.72,3.17945023]
[1754657583929,12.54957122,176.74,176.7,3.17945023]
[1754657584126,3.23,176.73,176.7,3.17945023]
[1754657584613,3.23,176.73,176.69,5.6575]
[1754657584818,3.23,176.73,176.68,8.83735023]
[1754657585013,3.23,176.73,176.67,338.74]
[1754657585014,3.23,176.72,176.67,341.91945023]
[1754657585527,12.54957122,176.73,176.69,5.6575]
[1754657585819,3.23,176.72,176.67,238.46945023]
[1754657586223,3.23,176.72,176.69,5.6575]
[1754657586427,3.23,176.72,176.67,238.17945023]
[1754657586821,3.23,176.72,176.68,3.53445435]
[1754657587021,3.23,176.72,176.67,238.17945023]
[1754657587220,15.77957122,176.72,176.67,238.17945023]
[1754657587530,3.19,176.71,176.67,243.83755023]
[1754657589228,3.19,176.71,176.67,8.83755023]
[1754657589427,3.19,176.71,176.67,3.17945023]
[1754657589626,12.54957122,176.7,176.67,3.17945023]
[1754657589928,15.73957122,176.72,176.71,5.657]
[1754657590127,3.19,176.72,176.71,8.83645023]
[1754657590428,3.19,176.74,176.71,3.17945023]
[1754657590627,3.19,176.73,176.71,3.17945023]
[1754657591332,12.54957122,176.74,176.71,3.17945023]
[1754657591525,3.19,176.72,176.71,3.17945023]
[1754657591725,3.19,176.72,176.71,3.45945023]
[1754657591932,15.73957122,176.74,176.71,3.45945023]
[1754657592130,15.73957122,176.74,176.72,0.28]
[1754657592433,15.73957122,176.74,176.73,3.45945023]
[1754657592630,19.27800817,176.74,176.73,3.45945023]
[1754657592932,19.27800817,176.74,176.73,3.17945023]
[1754657593433,19.27800817,176.74,176.73,0.20161554]
[1754657595035,19.27800817,176.74,176.73,3.17945023]
[1754657595332,6.72843695,176.74,176.73,3.17945023]
[1754657595533,3.53843695,176.74,176.73,3.17945023]
[1754657596134,6.72843695,176.74,176.73,3.17945023]
[1754657596932,6.72843695,176.74,176.73,1.05653242]
[1754657600544,3.53843695,176.74,176.73,1.05653242]
[1754657601235,6.72843695,176.74,176.73,1.05653242]
[1754657603235,6.72810468,176.74,176.73,1.05653242]
[1754657603535,6.72810468,176.74,176.73,3.17945023]
[1754657605044,6.72810468,176.74,176.73,0.06884652]
[1754657605339,3.53810468,176.74,176.73,0.06884652]
[1754657605546,3.19,176.76,176.73,0.06884652]
[1754657605847,3.19,176.76,176.75,8.83515023]
[1754657606047,3.19,176.76,176.75,3.17945023]
[1754657606550,12.54957122,176.77,176.76,3.04]
[1754657608544,15.73957122,176.77,176.76,8.6954]
[1754657610147,3.19,176.77,176.76,8.6954]
[1754657610551,3.19,176.77,176.76,3.04]
[1754657610751,3.19,176.77,176.75,8.83505023]
[1754657610752,12.54957122,176.78,176.75,3.17945023]
[1754657611048,15.73957122,176.78,176.77,6.21945023]
[1754657611248,3.19,176.78,176.77,3.17945023]
[1754657615442,3.19,176.78,176.72,238.04]
[1754657615647,3.19,176.76,176.73,3.17945023]
[1754657616952,3.19,176.76,176.73,8.83585023]
[1754657617357,3.19,176.76,176.73,3.17945023]
[1754657617659,3.05,176.74,176.73,3.17945023]
[1754657617858,3.53800267,176.74,176.71,3.17945023]
[1754657618047,3.05,176.72,176.71,3.17945023]
[1754657618246,6.58800267,176.72,176.71,3.17945023]
[1754657618563,3.05,176.71,176.68,6.01945023]
[1754657618853,16.07018483,176.7,176.69,2.84]
[1754657619056,16.07018483,176.7,176.69,6.01945023]
[1754657619450,3.05,176.69,176.68,2.84]
[1754657619655,16.07018483,176.69,176.67,8.4982]
[1754657619849,3.53800267,176.68,176.67,8.4982]
[1754657620552,3.53800267,176.68,176.67,11.67765023]
[1754657621252,6.58800267,176.68,176.67,3.17945023]
[1754657621560,3.05,176.67,176.66,103.54]
[1754657621757,6.58800267,176.67,176.66,3.17945023]
[1754657622148,3.53800267,176.67,176.66,6.01945023]
[1754657622358,13.02098946,176.67,176.66,6.01945023]
[1754657623260,13.02098946,176.67,176.66,11.67805023]
[1754657623558,16.07098946,176.67,176.66,3.17945023]
[1754657623758,6.58800267,176.67,176.66,3.17945023]
[1754657624358,3.05,176.66,176.64,2.84]
[1754657624549,16.06959609,176.65,176.64,3.17945023]
[1754657624748,16.06959609,176.65,176.64,6.01945023]
[1754657624952,16.06959609,176.65,176.64,11.67865023]
[1754657625356,13.01959609,176.65,176.64,11.67865023]
[1754657625557,3.53800267,176.65,176.64,11.67865023]
[1754657626557,16.06959609,176.65,176.64,11.67865023]
[1754657626861,13.01959609,176.65,176.64,11.67865023]
[1754657627058,3.05,176.68,176.67,5.6583]
[1754657627258,3.05,176.68,176.67,3.17945023]
[1754657627462,3.05,176.68,176.63,106.38]
[1754657627667,3.05,176.68,176.64,3.17945023]
[1754657628462,15.59957122,176.68,176.63,338.54]
[1754657628763,3.05,176.67,176.61,3.17945023]
[1754657628960,3.05,176.67,176.61,8.83935023]
[1754657629160,3.05,176.67,176.61,3.17945023]
[1754657629358,3.05,176.66,176.61,3.17945023]
[1754657629558,3.05,176.66,176.6,103.7]
[1754657630169,15.59957122,176.66,176.58,2.84]
[1754657630365,6.31372142,176.6,176.59,3.17945023]
[1754657630567,6.31126739,176.6,176.59,3.17945023]
[1754657630768,9.36126739,176.6,176.59,6.01945023]
[1754657631071,9.36126739,176.6,176.59,3.17945023]
[1754657631271,9.36126739,176.6,176.59,8.84035023]
[1754657631471,3.05,176.6,176.59,8.84035023]
[1754657631772,3.05,176.6,176.59,11.68035023]
[1754657632069,6.31126739,176.6,176.59,11.68035023]
[1754657633077,9.36126739,176.6,176.59,11.68035023]
[1754657633959,9.36126739,176.6,176.59,3.17945023]
[1754657634570,3.05,176.6,176.59,3.17945023]
[1754657634874,3.05,176.6,176.59,11.68035023]
[1754657635171,3.05,176.6,176.59,3.17945023]
[1754657636168,3.05,176.6,176.51,615.46]
[1754657636367,9.36126739,176.59,176.55,3.17945023]
[1754657636572,3.05,176.58,176.55,3.17945023]
[1754657636775,3.05,176.58,176.55,8.84145023]
[1754657636972,3.05,176.58,176.55,6.01945023]
[1754657637368,6.31126739,176.59,176.58,2.84]
[1754657637571,6.31126739,176.6,176.57,3.17945023]
[1754657637870,3.05,176.59,176.57,3.17945023]
[1754657638071,3.05,176.59,176.57,8.84075023]
[1754657638464,3.05,176.59,176.55,3.17945023]
[1754657638869,3.05,176.59,176.55,6.01945023]
[1754657639070,3.54066812,176.58,176.56,2.84]
[1754657639263,6.59066812,176.57,176.56,8.5018]
[1754657640078,3.54066812,176.57,176.55,11.68145023]
[1754657640269,6.59066812,176.56,176.55,11.68145023]
[1754657640469,3.54066812,176.56,176.55,11.68145023]
[1754657641074,3.05,176.61,176.56,2.84]
[1754657641375,6.31126739,176.62,176.6,3.17945023]
[1754657641766,3.05,176.61,176.6,3.17945023]
[1754657642173,3.05,176.61,176.6,11.67995023]
[1754657642368,3.05,176.61,176.6,3.17945023]
[1754657642770,3.05,176.61,176.6,6.01945023]
[1754657643269,3.05,176.61,176.6,11.68005023]
[1754657644979,3.05,176.62,176.61,5.6601]
[1754657645275,3.05,176.62,176.6,3.17945023]
[1754657646682,3.05,176.62,176.6,8.83995023]
[1754657646880,3.05,176.62,176.6,3.17945023]
[1754657649482,6.31126739,176.62,176.58,243.84035023]
[1754657649780,3.13,176.61,176.58,243.84035023]
[1754657650279,3.13,176.61,176.59,5.6609]
[1754657650681,3.13,176.61,176.58,238.17945023]
[1754657651288,3.13,176.6,176.58,8.84045023]
[1754657652275,3.13,176.6,176.59,8.5009]
[1754657652479,6.31126739,176.61,176.59,2.84]
[1754657652782,9.44126739,176.61,176.6,3.17945023]
[1754657653883,3.13,176.6,176.58,3.17945023]
[1754657654475,9.44126739,176.6,176.57,338.74]
[1754657654787,3.13,176.59,176.57,235.0]
[1754657655276,9.44126739,176.59,176.55,6.01945023]
[1754657655480,3.13,176.57,176.55,6.01945023]
[1754657655677,6.6707655,176.56,176.55,6.01945023]
[1754657655873,6.6707655,176.56,176.54,103.76]
[1754657656072,6.6707655,176.55,176.54,103.76]
[1754657656781,3.13,176.54,176.53,3.17945023]
[1754657656982,6.6707655,176.54,176.53,3.17945023]
[1754657657283,6.6707655,176.54,176.53,6.01945023]
[1754657657476,6.6707655,176.54,176.53,3.17945023]
[1754657657672,3.5407655,176.54,176.51,241.01945023]
[1754657657878,6.6707655,176.53,176.52,103.78]
[1754657658382,6.6707655,176.53,176.52,102.36339563]
[1754657658884,6.6707655,176.53,176.52,110.86649563]
[1754657659082,6.6707655,176.53,176.52,8.5031]
[1754657659778,3.54145982,176.53,176.52,8.5031]
[1754657662787,3.13,176.55,176.54,5.6625]
[1754657663083,6.67125963,176.55,176.54,5.6625]
[1754657663784,12.98252702,176.55,176.54,5.6625]
[1754657664684,3.13,176.54,176.53,8.84215023]
[1754657664889,3.13,176.53,176.51,338.78]
[1754657665186,6.67125963,176.52,176.51,341.95945023]
[1754657665378,6.67125963,176.52,176.51,347.62285023]
[1754657665581,9.43138216,176.56,176.52,2.84]
[1754657665779,3.13,176.57,176.56,2.84]
[1754657665979,3.13,176.57,176.56,3.17945023]
[1754657666585,3.13,176.57,176.56,8.84125023]
[1754657667692,12.56138216,176.57,176.56,8.84125023]
[1754657668793,9.43138216,176.57,176.56,112.56125023]
[1754657668997,9.43138216,176.58,176.57,5.6615]
[1754657669198,3.13,176.58,176.57,8.84095023]
[1754657670496,12.54957122,176.62,176.6,5.6604]
[1754657670792,3.17945023,176.76,176.61,3.17945023]
[1754657670793,12.54957122,176.64,176.61,3.17945023]
[1754657671300,12.54957122,176.63,176.61,0.1615988]
[1754657671500,3.13,176.62,176.61,0.1615988]
[1754657671900,3.13,176.62,176.61,5.8217988]
[1754657672101,15.67957122,176.64,176.61,0.1615988]
[1754657672295,3.17945023,176.7,176.59,103.74]
[1754657672296,12.54957122,176.65,176.63,3.17945023]
[1754657672492,12.54957122,176.64,176.63,3.17945023]
[1754657672700,15.67957122,176.64,176.63,3.17945023]
[1754657673100,3.13,176.63,176.59,106.91945023]
[1754657673301,3.13,176.61,176.59,106.91945023]
[1754657674899,3.13,176.61,176.59,1.05504034]
[1754657676002,3.13,176.61,176.59,3.17945023]
[1754657676303,3.17,176.6,176.59,3.17945023]
[1754657676697,3.17,176.6,176.59,1.76308096]
[1754657677699,6.71082193,176.6,176.59,1.76308096]
[1754657677899,3.54082193,176.6,176.59,7.42398096]
[1754657679105,12.64531397,176.62,176.6,5.6604]
[1754657679300,6.71071974,176.61,176.6,5.6604]
[1754657679508,3.17,176.6,176.59,5.6607]
[1754657679804,6.71071974,176.6,176.59,5.6607]
[1754657680102,6.71071974,176.6,176.5,240.30097404]
[1754657680302,9.49795418,176.56,176.5,240.30097404]
[1754657680508,12.66795418,176.56,176.55,3.17945023]
[1754657680698,16.20907075,176.56,176.55,237.81532427]
[1754657680905,6.71111657,176.56,176.55,3.17945023]
[1754657682003,3.17,176.59,176.58,5.6612]
[1754657682205,3.17,176.59,176.58,3.17945023]
[1754657682708,3.17,176.59,176.58,8.84065023]
[1754657682908,15.81531397,176.61,176.58,232.15312427]
[1754657683102,12.64531397,176.61,176.6,3.17945023]
[1754657683505,12.64531397,176.62,176.6,3.17945023]
[1754657683697,3.17,176.61,176.6,3.17945023]
[1754657684405,3.17,176.61,176.59,3.17945023]
[1754657684406,3.17,176.6,176.59,3.17945023]
[1754657684603,15.83690388,176.6,176.59,3.17945023]
[1754657685009,15.83690388,176.6,176.59,8.84035023]
[1754657685307,3.17,176.6,176.59,8.84035023]
[1754657686106,3.17,176.6,176.59,3.17945023]
[1754657687405,3.17,176.6,176.59,8.84035023]
[1754657689811,3.17,176.6,176.59,6.71583857]
[1754657690408,3.17,176.6,176.59,110.39583857]
[1754657692108,3.17,176.6,176.59,103.68]
[1754657692308,3.17,176.6,176.59,82.59282641]
[1754657692905,3.17,176.6,176.59,88.25372641]
[1754657693310,12.66690388,176.64,176.63,5.6596]
[1754657693605,12.66690388,176.66,176.63,3.06]
[1754657693805,12.66690388,176.66,176.65,6.23945023]
[1754657694114,12.66690388,176.67,176.66,5.6586]
[1754657694412,16.2068947,176.67,176.66,8.83805023]
[1754657695209,3.53999082,176.67,176.66,8.83805023]
[1754657695409,6.70999082,176.67,176.66,8.83805023]
[1754657695610,6.70999082,176.67,176.66,11.89805023]
[1754657696115,15.83690388,176.69,176.66,106.85945023]
[1754657696406,3.17,176.69,176.68,6.23945023]
[1754657697106,3.17,176.69,176.68,11.89745023]
[1754657698511,12.66690388,176.72,176.7,8.7173]
[1754657698713,12.66690388,176.72,176.71,6.23945023]
[1754657699216,12.66690388,176.73,176.71,6.23945023]
[1754657699413,12.66690388,176.73,176.71,8.83625023]
[1754657699614,12.66690388,176.74,176.72,3.06]
[1754657699915,12.66690388,176.75,176.73,4.11621052]
[1754657700706,3.17,176.75,176.74,3.06]
[1754657701110,3.17,176.75,176.74,6.23945023]
[1754657701512,128.93351077,176.83,176.75,3.06]
[1754657701513,12.6423776,176.76,176.75,3.06]
[1754657701707,3.17,176.77,176.76,3.06]
[1754657702511,3.17,176.77,176.75,3.17945023]
[1754657702714,3.17,176.77,176.75,11.89515023]
[1754657702916,3.17,176.77,176.75,6.23945023]
[1754657703519,3.17,176.77,176.75,3.17945023]
[1754657703814,12.6423776,176.76,176.72,3.17945023]
[1754657704121,3.17945023,176.81,176.73,3.06]
[1754657704122,3.17,176.75,176.73,3.06]
[1754657704315,3.17,176.75,176.72,3.17945023]
[1754657704523,12.62970755,176.73,176.72,6.23945023]
[1754657705217,12.62970755,176.73,176.72,11.89615023]
[1754657706621,12.62970755,176.73,176.72,6.23945023]
[1754657707416,3.17,176.73,176.72,6.23945023]
[1754657710118,9.45970755,176.74,176.72,11.89615023]
[1754657710323,9.45970755,176.76,176.73,3.19]
[1754657710526,12.67970755,176.77,176.75,6.36945023]
[1754657710821,12.67970755,176.77,176.76,3.19]
[1754657711317,3.22,176.77,176.76,8.8454]
[1754657711914,3.22,176.77,176.76,3.19]
[1754657711915,6.29815388,176.77,176.76,3.19]
[1754657712112,3.22,176.79,176.77,3.19]
[1754657712316,3.22,176.79,176.78,3.17945023]
[1754657712516,3.22,176.79,176.78,6.36945023]
[1754657712823,9.45970755,176.8,176.78,6.36945023]
[1754657713022,3.22,176.81,176.79,3.19]
[1754657713317,3.22,176.81,176.8,3.17945023]
[1754657713524,3.22,176.81,176.8,0.06423509]
[1754657714120,3.22,176.81,176.8,3.25423509]
[1754657714421,3.22,176.81,176.8,8.90833509]
[1754657714624,9.45970755,176.82,176.8,3.25423509]
[1754657714816,3.22,176.82,176.81,3.19]
[1754657715513,12.67970755,176.83,176.81,5.6538]
[1754657715717,3.22,176.83,176.82,6.36945023]
[1754657716922,3.22,176.83,176.82,12.02295023]
[1754657717122,3.22,176.87,176.82,3.17945023]
[1754657717327,3.22,176.87,176.84,6.36945023]
[1754657718227,3.22,176.87,176.84,3.17945023]
[1754657718621,12.67970755,176.87,176.8,332.63367404]
[1754657718821,3.22,176.86,176.81,3.17945023]
[1754657719624,3.22,176.86,176.81,5.6536]
[1754657719832,3.22,176.86,176.81,8.83305023]
[1754657720524,3.22,176.86,176.82,5.6535]
[1754657720720,3.22,176.85,176.84,3.19]
[1754657721124,3.22,176.85,176.84,8.8429]
[1754657721533,3.22,176.87,176.84,3.19]
[1754657721725,3.22,176.86,176.83,3.17945023]
[1754657722524,3.22,176.86,176.81,3.17945023]
[1754657722828,3.22,176.86,176.79,3.17945023]
[1754657723333,8.8723,176.86,176.79,3.17945023]
[1754657723522,3.22,176.85,176.79,3.17945023]
[1754657723721,3.22,176.85,176.8,5.6539]
[1754657723930,3.22,176.85,176.79,3.17945023]
[1754657724131,3.22,176.85,176.79,6.36945023]
[1754657724328,3.22,176.85,176.8,5.6541]
[1754657724629,3.22,176.85,176.8,8.8441]
[1754657724831,3.22,176.85,176.79,3.17945023]
[1754657725033,3.22,176.85,176.79,8.83385023]
[1754657725427,3.22,176.85,176.79,6.36945023]
[1754657725627,3.22,176.85,176.8,5.6541]
[1754657725828,3.22,176.85,176.8,8.8441]
[1754657727332,3.22,176.85,176.8,3.19]
[1754657728336,8.8727,176.85,176.81,3.19]
[1754657728532,3.22,176.84,176.81,3.19]
[1754657729338,8.873,176.84,176.79,3.17945023]
[1754657729537,3.22,176.83,176.8,3.19]
[1754657729736,3.22,176.83,176.81,3.19]
[1754657731936,3.22,176.83,176.8,3.19]
[1754657733034,5.6532,176.83,176.8,3.19]
[1754657733342,3.22,176.82,176.75,103.58]
[1754657733542,3.22,176.82,176.79,3.17945023]
[1754657734249,3.22,176.82,176.75,238.17945023]
[1754657734444,3.22,176.8,176.75,238.17945023]
[1754657734646,3.22,176.8,176.75,3.17945023]
[1754657734841,3.22,176.8,176.73,3.17945023]
[1754657735036,3.22,176.79,176.73,3.17945023]
[1754657735237,3.22,176.79,176.74,3.19]
[1754657735441,3.22,176.79,176.75,3.19]
[1754657735840,8.8745,176.79,176.75,3.19]
[1754657736048,3.01,176.78,176.75,3.19]
[1754657738249,3.01,176.77,176.75,3.19]
[1754657738453,9.45970755,176.78,176.75,3.19]
[1754657738854,3.01,176.76,176.75,3.19]
[1754657742152,12.46970755,176.76,176.75,3.19]
[1754657743357,12.46970755,176.76,176.73,238.17945023]
[1754657743548,9.45970755,176.76,176.73,238.17945023]
[1754657743753,3.01,176.74,176.73,238.17945023]
[1754657744150,12.46970755,176.74,176.73,238.17945023]
[1754657744357,16.00764471,176.74,176.73,235.0]
[1754657744562,16.00764471,176.74,176.73,232.87723771]
[1754657745453,6.54793716,176.74,176.73,232.87723771]
[1754657748860,6.54793716,176.74,176.72,0.22]
[1754657749056,6.54793716,176.73,176.72,0.22]
[1754657750963,3.53793716,176.73,176.72,0.22]
[1754657751263,13.04595497,176.73,176.72,0.22]
[1754657751462,16.05595497,176.73,176.72,103.7]
[1754657752365,6.54793716,176.73,176.72,0.22]
[1754657752865,3.53793716,176.73,176.72,0.22]
[1754657753367,6.54793716,176.73,176.72,0.22]
[1754657754366,6.54793716,176.73,176.71,339.53668794]
[1754657754570,13.04781656,176.72,176.71,339.53668794]
[1754657754769,6.54793716,176.72,176.71,99.58295416]
[1754657756264,3.53793716,176.72,176.71,102.76240439]
[1754657757068,13.04579611,176.72,176.71,102.76240439]
[1754657757272,13.04579611,176.72,176.71,108.41940439]
[1754657758465,16.05579611,176.72,176.71,108.41940439]
[1754657758669,13.04579611,176.72,176.71,108.41940439]
[1754657759571,3.53793716,176.72,176.71,108.41940439]
[1754657760480,16.05579611,176.72,176.71,108.41940439]
[1754657760666,16.05579611,176.72,176.71,341.2966421]
[1754657760869,13.04579611,176.72,176.71,341.2966421]
[1754657761370,3.53793716,176.72,176.71,341.2966421]
[1754657761875,13.04579611,176.72,176.71,341.2966421]
[1754657762076,3.53793716,176.72,176.71,341.2966421]
[1754657762575,6.54793716,176.72,176.71,341.2966421]
[1754657763371,16.05579611,176.72,176.71,341.2966421]
[1754657768485,6.54793716,176.72,176.71,333.5168229]
[1754657768680,3.01,176.72,176.71,326.44016366]
[1754657769577,6.54832962,176.72,176.71,325.02483182]
[1754657770291,6.54832969,176.72,176.71,325.02483182]
[1754657772684,6.54832969,176.72,176.71,92.14759411]
[1754657775885,6.54832969,176.72,176.71,85.07090803]
[1754657776982,6.54834304,176.72,176.71,85.07090803]
[1754657778292,6.54834304,176.72,176.7,336.35723771]
[1754657778586,6.76834304,176.71,176.7,96.40301627]
[1754657782480,3.53834304,176.71,176.7,102.06041627]
[1754657782679,6.76834304,176.71,176.7,96.40301627]
[1754657783178,6.76834304,176.71,176.7,102.06041627]
[1754657784390,6.76834304,176.71,176.7,334.93765398]
[1754657786688,3.53834304,176.71,176.7,334.93765398]
[1754657787790,6.76834304,176.71,176.7,334.93765398]
[1754657788382,6.76834304,176.71,176.7,332.81475664]
[1754657788591,6.76834304,176.71,176.7,325.73843217]
[1754657788790,6.76834304,176.71,176.7,327.76772854]
[1754657789783,12.6423776,176.77,176.7,322.11032854]
[1754657789990,12.6423776,176.81,176.77,3.23]
[1754657790182,12.6423776,176.82,176.8,2.02929637]
[1754657790388,12.6423776,176.81,176.78,2.02929637]
[1754657790696,14.67167397,176.82,176.78,2.02929637]
[1754657791189,14.67167397,176.82,176.77,103.48]
[1754657791190,12.6423776,176.82,176.79,2.02929637]
[1754657791395,2.02929637,176.83,176.79,2.02929637]
[1754657791396,12.6423776,176.8,176.79,2.02929637]
[1754657791593,12.6423776,176.81,176.79,2.02929637]
[1754657792093,3.23,176.8,176.79,2.02929637]
[1754657792696,3.23,176.8,176.78,3.16881566]
[1754657796796,15.8723776,176.8,176.78,3.16881566]
[1754657796998,3.19,176.79,176.78,3.16881566]
[1754657798395,3.19,176.79,176.78,1.04627458]
[1754657798593,3.19,176.79,176.75,106.64881566]